[Event "ONJK 2024 ABC"]
[Site "Velp, Netherlands"]
[Date "2024.08.06"]
[Round "6.6"]
[White "Madularea, David"]
[Black "Blok, Xaveer"]
[Result "0-1"]
[TimeControl "90 minutes + 30 seconds"]
[WhiteElo "2190"]
[BlackElo "1885"]

1. e4 {[%clk 01:30:45]} {[%emt 00:00:14]} c5 {[%clk 01:30:54]} {[%emt
00:00:07]} 2. Nf3 {[%clk 01:31:10]} {[%emt 00:00:04]} d6 {[%clk 01:31:16]}
{[%emt 00:00:08]} 3. d4 {[%clk 01:31:34]} {[%emt 00:00:06]} cxd4 {[%clk
01:31:42]} {[%emt 00:00:05]} 4. Nxd4 {[%clk 01:31:59]} {[%emt 00:00:05]} Nf6
{[%clk 01:32:02]} {[%emt 00:00:09]} 5. Nc3 {[%clk 01:32:19]} {[%emt 00:00:10]}
a6 {[%clk 01:32:26]} {[%emt 00:00:07]} 6. Be3 {[%clk 01:32:13]} {[%emt
00:00:35]} e5 {[%clk 01:32:50]} {[%emt 00:00:06]} 7. Nb3 {[%clk 01:32:40]}
{[%emt 00:00:04]} Be7 {[%clk 01:33:11]} {[%emt 00:00:08]} 8. Rg1 {[%clk
01:33:07]} {[%emt 00:00:03]} Ng4 {[%clk 01:25:02]} {[%emt 00:08:40]} 9. Bd2
{[%clk 01:33:30]} {[%emt 00:00:08]} Qb6 {[%clk 01:22:13]} {[%emt 00:03:19]} 10.
Qf3 {[%clk 01:33:54]} {[%emt 00:00:06]} Be6 {[%clk 01:07:09]} {[%emt 00:15:33]}
11. Be2 {[%clk 01:25:19]} {[%emt 00:09:06]} Nf6 {[%clk 01:06:41]} {[%emt
00:00:58]} 12. h3 {[%clk 01:21:31]} {[%emt 00:04:18]} Nbd7 {[%clk 01:02:28]}
{[%emt 00:04:44]} 13. Be3 {[%clk 01:18:08]} {[%emt 00:03:53]} Qc7 {[%clk
01:02:23]} {[%emt 00:00:34]} 14. g4 {[%clk 01:18:12]} {[%emt 00:00:27]} h6
{[%clk 01:02:13]} {[%emt 00:00:41]} 15. O-O-O {[%clk 01:15:18]} {[%emt
00:03:23]} Rc8 {[%clk 01:00:51]} {[%emt 00:01:52]} 16. Rd2 {[%clk 01:10:03]}
{[%emt 00:05:46]} b5 {[%clk 00:56:58]} {[%emt 00:04:23]} 17. h4 {[%clk
01:05:06]} {[%emt 00:05:26]} Nb6 {[%clk 00:47:56]} {[%emt 00:09:32]} 18. g5
{[%clk 01:04:41]} {[%emt 00:00:55]} Nfd7 {[%clk 00:46:27]} {[%emt 00:01:58]} 19.
g6 {[%clk 00:34:24]} {[%emt 00:30:47]} f6 {[%clk 00:44:22]} {[%emt 00:02:36]}
20. Nd5 {[%clk 00:33:16]} {[%emt 00:01:38]} Bxd5 {[%clk 00:40:53]} {[%emt
00:04:00]} 21. exd5 {[%clk 00:33:42]} {[%emt 00:00:05]} Nc4 {[%clk 00:39:54]}
{[%emt 00:01:29]} 22. Bxc4 {[%clk 00:33:24]} {[%emt 00:00:47]} bxc4 {[%clk
00:39:59]} {[%emt 00:00:25]} 23. Qf5 {[%clk 00:32:35]} {[%emt 00:01:20]} cxb3
{[%clk 00:39:24]} {[%emt 00:01:05]} 24. axb3 {[%clk 00:32:57]} {[%emt
00:00:08]} Nc5 {[%clk 00:34:22]} {[%emt 00:05:32]} 25. Bxc5 {[%clk 00:32:07]}
{[%emt 00:01:20]} Qxc5 {[%clk 00:34:30]} {[%emt 00:00:22]} 26. Rg4 {[%clk
00:32:22]} {[%emt 00:00:15]} Rc7 {[%clk 00:32:31]} {[%emt 00:02:29]} 27. Qe6
{[%clk 00:31:43]} {[%emt 00:01:08]} Rf8 {[%clk 00:32:18]} {[%emt 00:00:43]} 28.
Qf5 {[%clk 00:28:31]} {[%emt 00:03:43]} Qb5 {[%clk 00:31:08]} {[%emt 00:01:40]}
29. Ra4 {[%clk 00:27:14]} {[%emt 00:01:47]} Qd7 {[%clk 00:26:45]} {[%emt
00:04:53]} 30. Qd3 {[%clk 00:27:27]} {[%emt 00:00:18]} f5 {[%clk 00:26:57]}
{[%emt 00:00:17]} 31. Qxa6 {[%clk 00:26:02]} {[%emt 00:01:55]} Bxh4 {[%clk
00:27:01]} {[%emt 00:00:26]} 32. Kb1 {[%clk 00:25:11]} {[%emt 00:01:22]} Bg5
{[%clk 00:25:50]} {[%emt 00:01:41]} 33. Re2 {[%clk 00:25:00]} {[%emt 00:00:41]}
Ke7 {[%clk 00:24:45]} {[%emt 00:01:34]} 34. b4 {[%clk 00:24:56]} {[%emt
00:00:33]} Rb8 {[%clk 00:23:14]} {[%emt 00:02:01]} 35. c4 {[%clk 00:24:29]}
{[%emt 00:00:58]} Rbb7 {[%clk 00:21:47]} {[%emt 00:01:56]} 36. Qa8 {[%clk
00:18:01]} {[%emt 00:06:59]} Rxc4 {[%clk 00:20:07]} {[%emt 00:02:10]} 37. Ra6
{[%clk 00:17:15]} {[%emt 00:01:16]} Rc8 {[%clk 00:19:31]} {[%emt 00:01:06]} 38.
Rxe5+ {[%clk 00:17:20]} {[%emt 00:00:25]} dxe5 {[%clk 00:19:02]} {[%emt
00:00:58]} 39. Re6+ {[%clk 00:17:47]} {[%emt 00:00:03]} Kf8 {[%clk 00:19:17]}
{[%emt 00:00:14]} 0-1

[Event "ONJK 2024 ABC"]
[Site "Velp, Netherlands"]
[Date "2024.08.06"]
[Round "6.7"]
[White "Sapulette, Jay-Giani"]
[Black "Hagen, Carlijn"]
[Result "1-0"]
[TimeControl "90 minutes + 30 seconds"]
[WhiteElo "1746"]
[BlackElo "1645"]

1. e4 {[%clk 01:30:59]} {[%emt 00:00:01]} e5 {[%clk 01:30:55]} {[%emt
00:00:05]} 2. Nf3 {[%clk 01:31:26]} {[%emt 00:00:03]} Nc6 {[%clk 01:31:19]}
{[%emt 00:00:06]} 3. d4 {[%clk 01:31:54]} {[%emt 00:00:02]} exd4 {[%clk
01:31:40]} {[%emt 00:00:10]} 4. Bc4 {[%clk 01:32:20]} {[%emt 00:00:03]} Be7
{[%clk 01:31:08]} {[%emt 00:01:01]} 5. c3 {[%clk 01:32:28]} {[%emt 00:00:22]}
d6 {[%clk 01:30:38]} {[%emt 00:01:00]} 6. cxd4 {[%clk 01:31:10]} {[%emt
00:01:48]} Bg4 {[%clk 01:30:26]} {[%emt 00:00:42]} 7. Qb3 {[%clk 01:25:18]}
{[%emt 00:06:22]} Bh5 {[%clk 01:28:55]} {[%emt 00:02:00]} 8. Qxb7 {[%clk
01:22:30]} {[%emt 00:03:19]} Na5 {[%clk 01:23:54]} {[%emt 00:05:30]} 9. Qb5+
{[%clk 01:22:40]} {[%emt 00:00:19]} c6 {[%clk 01:24:14]} {[%emt 00:00:11]} 10.
Qxh5 {[%clk 01:23:05]} {[%emt 00:00:05]} Nxc4 {[%clk 01:24:33]} {[%emt
00:00:10]} 11. Nfd2 {[%clk 01:17:48]} {[%emt 00:05:47]} Nxd2 {[%clk 01:20:17]}
{[%emt 00:04:46]} 12. Nxd2 {[%clk 01:16:55]} {[%emt 00:01:23]} Qb6 {[%clk
01:19:19]} {[%emt 00:01:29]} 13. Nb3 {[%clk 01:16:17]} {[%emt 00:01:07]} Nf6
{[%clk 01:18:22]} {[%emt 00:01:28]} 14. Qe2 {[%clk 01:16:20]} {[%emt 00:00:26]}
O-O {[%clk 01:16:28]} {[%emt 00:02:24]} 15. O-O {[%clk 01:14:19]} {[%emt
00:02:26]} Rfe8 {[%clk 01:16:07]} {[%emt 00:00:56]} 16. f3 {[%clk 01:08:45]}
{[%emt 00:06:04]} Bd8 {[%clk 01:07:46]} {[%emt 00:08:52]} 17. Be3 {[%clk
01:05:10]} {[%emt 00:04:04]} Qb7 {[%clk 01:06:46]} {[%emt 00:01:31]} 18. Rac1
{[%clk 00:59:40]} {[%emt 00:06:00]} Rc8 {[%clk 01:03:48]} {[%emt 00:03:28]} 19.
Rc3 {[%clk 00:49:15]} {[%emt 00:10:55]} a5 {[%clk 00:53:30]} {[%emt 00:10:49]}
20. Qc2 {[%clk 00:43:52]} {[%emt 00:05:51]} a4 {[%clk 00:37:15]} {[%emt
00:16:46]} 21. Nd2 {[%clk 00:44:11]} {[%emt 00:00:12]} Re7 {[%clk 00:34:56]}
{[%emt 00:02:48]} 22. Nc4 {[%clk 00:34:24]} {[%emt 00:10:18]} Ne8 {[%clk
00:34:20]} {[%emt 00:01:05]} 23. Qxa4 {[%clk 00:31:32]} {[%emt 00:03:22]} d5
{[%clk 00:25:36]} {[%emt 00:09:15]} 24. Rb3 {[%clk 00:31:03]} {[%emt 00:00:58]}
Qa8 {[%clk 00:24:42]} {[%emt 00:01:24]} 25. Qxa8 {[%clk 00:30:54]} {[%emt
00:00:39]} Rxa8 {[%clk 00:25:11]} {[%emt 00:00:02]} 26. Ne5 {[%clk 00:30:19]}
{[%emt 00:01:04]} Re6 {[%clk 00:23:58]} {[%emt 00:01:43]} 27. exd5 {[%clk
00:29:57]} {[%emt 00:00:52]} cxd5 {[%clk 00:24:12]} {[%emt 00:00:17]} 28. a3
{[%clk 00:28:50]} {[%emt 00:01:37]} Bf6 {[%clk 00:22:19]} {[%emt 00:02:23]} 29.
Bf2 {[%clk 00:28:26]} {[%emt 00:00:54]} Bxe5 {[%clk 00:21:33]} {[%emt
00:01:16]} 30. dxe5 {[%clk 00:28:50]} {[%emt 00:00:06]} Rxe5 {[%clk 00:21:40]}
{[%emt 00:00:22]} 31. Bg3 {[%clk 00:29:06]} {[%emt 00:00:14]} Re2 {[%clk
00:20:57]} {[%emt 00:01:13]} 32. Rd1 {[%clk 00:28:40]} {[%emt 00:00:56]} Rc8
{[%clk 00:19:13]} {[%emt 00:02:15]} 33. Kf1 {[%clk 00:25:24]} {[%emt 00:03:46]}
Rcc2 {[%clk 00:15:29]} {[%emt 00:04:14]} 34. Re1 {[%clk 00:25:12]} {[%emt
00:00:42]} Rxe1+ {[%clk 00:15:04]} {[%emt 00:00:55]} 35. Bxe1 {[%clk 00:25:35]}
{[%emt 00:00:07]} f6 {[%clk 00:14:57]} {[%emt 00:00:38]} 36. Bc3 {[%clk
00:25:37]} {[%emt 00:00:27]} Nd6 {[%clk 00:14:31]} {[%emt 00:00:56]} 37. a4
{[%clk 00:24:11]} {[%emt 00:01:57]} Nc4 {[%clk 00:14:32]} {[%emt 00:00:29]} 38.
Be1 {[%clk 00:19:35]} {[%emt 00:05:05]} Nxb2 {[%clk 00:13:49]} {[%emt
00:01:14]} 39. a5 {[%clk 00:19:27]} {[%emt 00:00:38]} Nc4 {[%clk 00:13:54]}
{[%emt 00:00:24]} 40. a6 {[%clk 00:19:36]} {[%emt 00:00:21]} Ra2 {[%clk
00:13:52]} {[%emt 00:00:32]} 41. Rb8+ {[%clk 00:19:45]} {[%emt 00:00:21]} Kf7
{[%clk 00:14:16]} {[%emt 00:00:06]} 42. Rb7+ {[%clk 00:20:12]} {[%emt
00:00:03]} Kg6 {[%clk 00:12:54]} {[%emt 00:01:52]} 43. a7 {[%clk 00:19:33]}
{[%emt 00:01:09]} Ne3+ {[%clk 00:13:08]} {[%emt 00:00:16]} 44. Kg1 {[%clk
00:19:36]} {[%emt 00:00:27]} Rxg2+ {[%clk 00:13:33]} {[%emt 00:00:06]} 45. Kh1
{[%clk 00:19:58]} {[%emt 00:00:07]} Re2 {[%clk 00:13:36]} {[%emt 00:00:27]} 46.
Rb1 {[%clk 00:14:27]} {[%emt 00:06:02]} Ra2 {[%clk 00:13:07]} {[%emt 00:00:59]}
47. Bb4 {[%clk 00:14:42]} {[%emt 00:00:15]} Nc2 {[%clk 00:09:00]} {[%emt
00:04:37]} 48. Bc5 {[%clk 00:14:15]} {[%emt 00:00:58]} Ra5 {[%clk 00:09:04]}
{[%emt 00:00:23]} 49. Rb8 {[%clk 00:13:34]} {[%emt 00:01:13]} Rxc5 {[%clk
00:08:11]} {[%emt 00:01:23]} 50. a8=Q {[%clk 00:13:50]} {[%emt 00:00:14]} Ne3
{[%clk 00:08:21]} {[%emt 00:00:19]} 51. Rb1 {[%clk 00:13:46]} {[%emt 00:00:35]}
Rc2 {[%clk 00:07:41]} {[%emt 00:01:10]} 52. Qe8+ {[%clk 00:14:06]} {[%emt
00:00:10]} 1-0

[Event "ONJK 2024 ABC"]
[Site "Velp, Netherlands"]
[Date "2024.08.06"]
[Round "6.8"]
[White "Kool, Jesper"]
[Black "Musabayev, Maxim"]
[Result "1-0"]
[TimeControl "90 minutes + 30 seconds"]
[WhiteElo "1823"]
[BlackElo "1824"]

1. e4 {[%clk 01:30:59]} e5 {[%clk 01:31:24]} {[%emt 00:00:07]} 2. Nf3 {[%clk
01:31:27]} {[%emt 00:00:02]} Nc6 {[%clk 01:31:28]} {[%emt 00:00:26]} 3. d4
{[%clk 01:31:53]} {[%emt 00:00:04]} exd4 {[%clk 01:31:55]} {[%emt 00:00:03]} 4.
Nxd4 {[%clk 01:32:19]} {[%emt 00:00:03]} Bc5 {[%clk 01:32:20]} {[%emt
00:00:05]} 5. Be3 {[%clk 01:32:45]} {[%emt 00:00:04]} Qf6 {[%clk 01:32:47]}
{[%emt 00:00:03]} 6. c3 {[%clk 01:33:10]} {[%emt 00:00:06]} Nge7 {[%clk
01:32:53]} {[%emt 00:00:24]} 7. Bc4 {[%clk 01:33:19]} {[%emt 00:00:20]} O-O
{[%clk 01:33:05]} {[%emt 00:00:18]} 8. O-O {[%clk 01:33:32]} {[%emt 00:00:17]}
d6 {[%clk 01:33:13]} {[%emt 00:00:23]} 9. Nxc6 {[%clk 01:33:10]} {[%emt
00:00:52]} Nxc6 {[%clk 01:32:21]} {[%emt 00:01:22]} 10. Bxc5 {[%clk 01:33:31]}
{[%emt 00:00:08]} dxc5 {[%clk 01:32:50]} {[%emt 00:00:01]} 11. f4 {[%clk
01:33:09]} {[%emt 00:00:51]} Be6 {[%clk 01:33:04]} {[%emt 00:00:17]} 12. Na3
{[%clk 01:31:36]} {[%emt 00:02:02]} Rad8 {[%clk 01:32:55]} {[%emt 00:00:39]} 13.
Qe2 {[%clk 01:30:38]} {[%emt 00:01:28]} Rd7 {[%clk 01:31:51]} {[%emt 00:01:35]}
14. Bb5 {[%clk 01:30:09]} {[%emt 00:00:58]} Rfd8 {[%clk 01:31:07]} {[%emt
00:01:14]} 15. f5 {[%clk 01:30:11]} {[%emt 00:00:29]} Rd2 {[%clk 01:31:12]}
{[%emt 00:00:25]} 16. fxe6 {[%clk 01:29:53]} {[%emt 00:00:47]} 1-0

[Event "ONJK 2024 ABC"]
[Site "Velp, Netherlands"]
[Date "2024.08.06"]
[Round "6.9"]
[White "De Rycke, Killian"]
[Black "Frederiks, Jesse"]
[Result "1/2-1/2"]
[TimeControl "90 minutes + 30 seconds"]
[WhiteElo "1751"]
[BlackElo "1757"]

1. e4 {[%clk 01:30:15]} {[%emt 00:00:45]} Nf6 {[%clk 01:30:47]} {[%emt
00:00:14]} 2. Nc3 {[%clk 01:29:54]} {[%emt 00:00:51]} d5 {[%clk 01:31:07]}
{[%emt 00:00:09]} 3. exd5 {[%clk 01:29:11]} {[%emt 00:01:14]} Nxd5 {[%clk
01:31:17]} {[%emt 00:00:19]} 4. d4 {[%clk 01:27:27]} {[%emt 00:02:15]} Nxc3
{[%clk 01:29:42]} {[%emt 00:02:05]} 5. bxc3 {[%clk 01:27:31]} {[%emt 00:00:26]}
g6 {[%clk 01:29:43]} {[%emt 00:00:28]} 6. Nf3 {[%clk 01:27:01]} {[%emt
00:01:01]} Bg7 {[%clk 01:29:39]} {[%emt 00:00:33]} 7. Bf4 {[%clk 01:26:05]}
{[%emt 00:01:26]} O-O {[%clk 01:25:14]} {[%emt 00:04:55]} 8. Bc4 {[%clk
01:25:55]} {[%emt 00:00:41]} Nd7 {[%clk 01:22:13]} {[%emt 00:03:30]} 9. O-O
{[%clk 01:25:24]} {[%emt 00:01:02]} Nb6 {[%clk 01:15:44]} {[%emt 00:06:59]} 10.
Bb3 {[%clk 01:24:34]} {[%emt 00:01:20]} c5 {[%clk 01:10:17]} {[%emt 00:05:56]}
11. Qe2 {[%clk 01:16:42]} {[%emt 00:08:23]} Bg4 {[%clk 01:02:10]} {[%emt
00:08:37]} 12. dxc5 {[%clk 01:11:19]} {[%emt 00:05:53]} Nd7 {[%clk 01:02:03]}
{[%emt 00:00:35]} 13. Rad1 {[%clk 01:10:51]} {[%emt 00:01:00]} Qa5 {[%clk
00:59:05]} {[%emt 00:03:28]} 14. c6 {[%clk 01:04:11]} {[%emt 00:07:10]} bxc6
{[%clk 00:58:43]} {[%emt 00:00:51]} 15. Qxe7 {[%clk 01:00:59]} {[%emt
00:03:43]} Qf5 {[%clk 00:52:57]} {[%emt 00:06:16]} 16. Qg5 {[%clk 00:42:04]}
{[%emt 00:19:25]} Qxg5 {[%clk 00:49:47]} {[%emt 00:03:40]} 17. Bxg5 {[%clk
00:37:40]} {[%emt 00:04:54]} Ne5 {[%clk 00:46:28]} {[%emt 00:03:49]} 18. Be7
{[%clk 00:26:57]} {[%emt 00:11:14]} Rfe8 {[%clk 00:42:08]} {[%emt 00:04:50]} 19.
Nxe5 {[%clk 00:15:00]} {[%emt 00:12:27]} Bxe5 {[%clk 00:42:24]} {[%emt
00:00:14]} 20. f3 {[%clk 00:14:57]} {[%emt 00:00:33]} Rxe7 {[%clk 00:41:08]}
{[%emt 00:01:45]} 21. fxg4 {[%clk 00:15:13]} {[%emt 00:00:15]} Bxc3 {[%clk
00:40:10]} {[%emt 00:01:29]} 22. Rd3 {[%clk 00:15:02]} {[%emt 00:00:41]} Bb4
{[%clk 00:39:14]} {[%emt 00:01:24]} 23. Rfd1 {[%clk 00:13:46]} {[%emt
00:01:47]} Rae8 {[%clk 00:37:12]} {[%emt 00:02:31]} 24. Rd7 {[%clk 00:09:59]}
{[%emt 00:04:18]} Rxd7 {[%clk 00:37:02]} {[%emt 00:00:40]} 25. Rxd7 {[%clk
00:10:17]} {[%emt 00:00:11]} Re7 {[%clk 00:37:17]} {[%emt 00:00:16]} 26. Rxe7
{[%clk 00:10:22]} {[%emt 00:00:25]} Bxe7 {[%clk 00:37:44]} {[%emt 00:00:03]} 27.
Kf2 {[%clk 00:10:44]} {[%emt 00:00:08]} Kg7 {[%clk 00:37:13]} {[%emt 00:01:01]}
28. Ke3 {[%clk 00:09:44]} {[%emt 00:01:29]} f5 {[%clk 00:36:41]} {[%emt
00:01:03]} 29. gxf5 {[%clk 00:08:02]} {[%emt 00:02:12]} gxf5 {[%clk 00:37:08]}
{[%emt 00:00:02]} 30. Kd4 {[%clk 00:06:55]} {[%emt 00:01:38]} Kf6 {[%clk
00:37:12]} {[%emt 00:00:26]} 31. c4 {[%clk 00:06:08]} {[%emt 00:01:17]} c5+
{[%clk 00:36:52]} {[%emt 00:00:51]} 32. Kd5 {[%clk 00:05:42]} {[%emt 00:00:55]}
f4 {[%clk 00:36:28]} {[%emt 00:00:54]} 33. Kc6 {[%clk 00:05:15]} {[%emt
00:00:58]} Ke5 {[%clk 00:36:30]} {[%emt 00:00:27]} 34. Kb7 {[%clk 00:05:09]}
{[%emt 00:00:36]} a5 {[%clk 00:36:45]} {[%emt 00:00:16]} 35. Kb6 {[%clk
00:05:28]} {[%emt 00:00:10]} Kd4 {[%clk 00:36:16]} {[%emt 00:00:59]} 36. Kxa5
{[%clk 00:05:20]} {[%emt 00:00:38]} h5 {[%clk 00:35:25]} {[%emt 00:01:21]} 37.
Kb5 {[%clk 00:05:10]} {[%emt 00:00:39]} h4 {[%clk 00:35:42]} {[%emt 00:00:14]}
38. h3 {[%clk 00:05:18]} {[%emt 00:00:22]} Ke5 {[%clk 00:33:49]} {[%emt
00:02:23]} 39. Bd1 {[%emt 00:01:40]} Kd6 {[%clk 00:34:08]} {[%emt 00:00:10]} 40.
Kb6 {[%clk 00:04:14]} {[%emt 00:00:26]} Bd8+ {[%clk 00:34:09]} {[%emt
00:00:28]} 41. Kb5 {[%clk 00:04:06]} {[%emt 00:00:38]} Be7 {[%clk 00:34:31]}
{[%emt 00:00:07]} 42. a4 {[%emt 00:00:21]} Kc7 {[%clk 00:34:56]} {[%emt
00:00:04]} 43. a5 {[%clk 00:04:21]} {[%emt 00:00:27]} Kb7 {[%clk 00:34:53]}
{[%emt 00:00:31]} 44. Bf3+ {[%clk 00:03:10]} {[%emt 00:01:42]} Ka7 {[%clk
00:35:15]} {[%emt 00:00:08]} 45. a6 {[%clk 00:03:21]} {[%emt 00:00:19]} Bf8
{[%clk 00:35:12]} {[%emt 00:00:32]} 46. Bb7 {[%clk 00:03:24]} {[%emt 00:00:28]}
Be7 {[%clk 00:35:25]} {[%emt 00:00:16]} 47. Kc6 {[%clk 00:03:45]} {[%emt
00:00:10]} Bf8 {[%clk 00:35:44]} {[%emt 00:00:09]} 48. Kd5 {[%clk 00:03:56]}
{[%emt 00:00:22]} Kb6 {[%clk 00:36:02]} {[%emt 00:00:11]} 49. Ke4 {[%clk
00:04:05]} {[%emt 00:00:21]} Be7 {[%clk 00:35:38]} {[%emt 00:00:50]} 50. Kxf4
{[%clk 00:02:58]} {[%emt 00:01:41]} Bd6+ {[%clk 00:36:06]} {[%emt 00:00:01]} 51.
Ke4 {[%clk 00:02:44]} {[%emt 00:00:45]} Bg3 {[%clk 00:36:34]} {[%emt 00:00:02]}
52. Kd5 {[%clk 00:03:07]} {[%emt 00:00:07]} Bh2 {[%clk 00:36:28]} {[%emt
00:00:36]} 53. Bc8 {[%clk 00:02:11]} {[%emt 00:01:25]} Bb8 {[%emt 00:02:54]} 54.
Ke4 {[%emt 00:00:03]} Kc6 1/2-1/2

[Event "ONJK 2024 ABC"]
[Site "Velp, Netherlands"]
[Date "2024.08.06"]
[Round "6.10"]
[White "Zhezheria, Maksym"]
[Black "Zootjes, Aaron"]
[Result "1-0"]
[TimeControl "90 minutes + 30 seconds"]
[WhiteElo "1626"]
[BlackElo "1639"]

1. d4 {[%clk 01:30:57]} {[%emt 00:00:03]} d5 {[%clk 01:30:53]} {[%emt
00:00:07]} 2. c4 {[%clk 01:31:22]} {[%emt 00:00:06]} e6 {[%clk 01:31:16]}
{[%emt 00:00:07]} 3. Nc3 {[%clk 01:31:46]} {[%emt 00:00:06]} Nf6 {[%clk
01:31:34]} {[%emt 00:00:12]} 4. Nf3 {[%clk 01:32:06]} {[%emt 00:00:10]} c5
{[%clk 01:31:23]} {[%emt 00:00:40]} 5. e3 {[%clk 01:32:18]} {[%emt 00:00:19]}
Nc6 {[%clk 01:31:02]} {[%emt 00:00:51]} 6. cxd5 {[%clk 01:31:43]} {[%emt
00:01:04]} exd5 {[%clk 01:31:09]} {[%emt 00:00:23]} 7. Bb5 {[%clk 01:32:05]}
{[%emt 00:00:09]} Bd7 {[%clk 01:28:22]} {[%emt 00:03:17]} 8. dxc5 {[%clk
01:31:14]} {[%emt 00:01:21]} Bxc5 {[%clk 01:28:41]} {[%emt 00:00:10]} 9. O-O
{[%clk 01:30:01]} {[%emt 00:01:43]} a6 {[%clk 01:27:32]} {[%emt 00:01:40]} 10.
Ba4 {[%clk 01:28:19]} {[%emt 00:02:11]} O-O {[%clk 01:23:48]} {[%emt 00:04:14]}
11. Nxd5 {[%clk 01:28:11]} {[%emt 00:00:39]} b5 {[%clk 01:21:38]} {[%emt
00:02:39]} 12. Bb3 {[%clk 01:27:37]} {[%emt 00:01:05]} Bg4 {[%clk 01:15:01]}
{[%emt 00:07:06]} 13. Nxf6+ {[%clk 01:27:40]} {[%emt 00:00:28]} Qxf6 {[%clk
01:15:21]} {[%emt 00:00:09]} 14. Bd5 {[%clk 01:27:48]} {[%emt 00:00:23]} Rad8
{[%clk 01:15:19]} {[%emt 00:00:32]} 15. h3 {[%clk 01:24:44]} {[%emt 00:03:34]}
Bh5 {[%clk 01:04:36]} {[%emt 00:11:13]} 16. g4 {[%clk 01:24:13]} {[%emt
00:01:01]} Bg6 {[%clk 01:04:54]} {[%emt 00:00:11]} 17. e4 {[%clk 01:20:01]}
{[%emt 00:04:43]} Ne5 {[%clk 00:57:35]} {[%emt 00:07:48]} 18. Nxe5 {[%clk
01:16:50]} {[%emt 00:03:42]} Qxe5 {[%clk 00:57:57]} {[%emt 00:00:08]} 19. Qf3
{[%clk 01:17:00]} {[%emt 00:00:20]} Rfe8 {[%clk 00:42:58]} {[%emt 00:15:29]} 20.
Re1 {[%clk 01:17:18]} {[%emt 00:00:12]} Rxd5 {[%clk 00:43:12]} {[%emt
00:00:15]} 21. Bf4 {[%clk 01:17:21]} {[%emt 00:00:27]} Bxe4 {[%clk 00:42:07]}
{[%emt 00:01:35]} 22. Qg3 {[%clk 01:07:59]} {[%emt 00:09:52]} Qxb2 {[%clk
00:41:16]} {[%emt 00:01:22]} 23. Rab1 {[%clk 00:39:48]} {[%emt 00:28:41]} Rd3
{[%clk 00:37:28]} {[%emt 00:04:18]} 24. Rxb2 {[%clk 00:39:01]} {[%emt
00:01:17]} Rxg3+ {[%clk 00:36:31]} {[%emt 00:01:27]} 25. Bxg3 {[%clk 00:38:45]}
{[%emt 00:00:46]} Re6 {[%clk 00:32:42]} {[%emt 00:04:19]} 26. Rb3 {[%clk
00:31:35]} {[%emt 00:07:40]} Kf8 {[%clk 00:30:40]} {[%emt 00:02:33]} 27. Kh2
{[%clk 00:31:04]} {[%emt 00:01:00]} Ke7 {[%clk 00:21:23]} {[%emt 00:09:46]} 28.
Rc3 {[%clk 00:30:00]} {[%emt 00:01:35]} Bb4 {[%clk 00:14:22]} {[%emt 00:07:31]}
29. Rc7+ {[%clk 00:30:28]} {[%emt 00:00:03]} Kf6 {[%clk 00:14:36]} {[%emt
00:00:16]} 30. f4 {[%clk 00:26:46]} {[%emt 00:04:12]} Bxe1 {[%clk 00:14:31]}
{[%emt 00:00:34]} 31. Bxe1 {[%clk 00:27:14]} {[%emt 00:00:02]} Bd5 {[%clk
00:14:23]} {[%emt 00:00:39]} 32. Bh4+ {[%clk 00:27:32]} {[%emt 00:00:11]} g5
{[%clk 00:13:31]} {[%emt 00:01:22]} 33. Bxg5+ {[%clk 00:27:17]} {[%emt
00:00:45]} Kg7 {[%clk 00:13:51]} {[%emt 00:00:10]} 34. Rc2 {[%clk 00:26:40]}
{[%emt 00:01:08]} Re3 {[%clk 00:11:16]} {[%emt 00:03:04]} 35. Rd2 {[%clk
00:25:07]} {[%emt 00:02:03]} Bc4 {[%clk 00:07:27]} {[%emt 00:04:19]} 36. Rd6
{[%clk 00:23:49]} {[%emt 00:01:49]} Re6 {[%clk 00:06:44]} {[%emt 00:01:12]} 37.
Rd8 {[%clk 00:23:25]} {[%emt 00:00:55]} Re2+ {[%clk 00:03:40]} {[%emt
00:03:33]} 38. Kg3 {[%clk 00:23:43]} {[%emt 00:00:12]} Re3+ {[%clk 00:03:51]}
{[%emt 00:00:19]} 39. Kf2 {[%clk 00:24:09]} {[%emt 00:00:04]} Rxh3 {[%clk
00:03:42]} {[%emt 00:00:39]} 40. f5 {[%clk 00:23:23]} {[%emt 00:01:16]} Rh2+
{[%clk 00:03:46]} {[%emt 00:00:26]} 41. Kg3 {[%clk 00:23:52]} {[%emt 00:00:01]}
Rxa2 {[%clk 00:04:07]} {[%emt 00:00:10]} 42. f6+ {[%clk 00:24:15]} {[%emt
00:00:07]} 1-0